fUSD/lending_fUSD_20250206
["ID","MTS","AMOUNT","RATE_DAILY","PERIOD"]
[351833995,1738807840034,-550.3641407,0.0002018,4]
[351833998,1738807840044,-1323.95,0.0002018,2]
[351833999,1738807840054,-500.0,0.0002018,4]
[351834001,1738807840063,-597.65243107,0.0002018,4]
[351834003,1738807840073,-500.0,0.0002018,4]
[351834005,1738807840083,-446.3317366,0.0002018,4]
[351834007,1738807840093,-592.8185056,0.0002018,4]
[351834009,1738807840102,-500.0,0.0002018,4]
[351834011,1738807840112,-525.3308423,0.0002018,4]
[351834013,1738807840124,-509.97712914,0.0002018,4]
[351834015,1738807840134,-509.79792142,0.0002018,4]
[351834017,1738807840143,-500.0,0.0002018,4]
[351834019,1738807840153,-500.0,0.0002018,4]
[351834021,1738807840163,-514.98308699,0.0002018,4]
[351834023,1738807840172,-500.0,0.0002018,4]
[351834025,1738807840182,-500.0,0.0002018,4]
[351834027,1738807840192,-500.0,0.0002018,4]
[351834029,1738807840202,-500.0,0.0002018,4]
[351834031,1738807840211,-500.0,0.0002018,4]
[351834033,1738807840221,-412.5534473,0.0002018,4]
[351834035,1738807840231,-500.0,0.0002018,4]
[351834037,1738807840241,-500.0,0.0002018,4]
[351834039,1738807840251,-500.0,0.0002018,4]
[351834041,1738807840261,-500.0,0.0002018,4]
[351834043,1738807840270,-500.0,0.0002018,4]
[351834045,1738807840279,-500.0,0.0002018,4]
[351834047,1738807840289,-398.12616397,0.0002018,4]
[351834050,1738807840300,-500.0,0.0002018,4]
[351834052,1738807840310,-500.0,0.0002018,4]
[351834054,1738807840320,-500.0,0.0002018,4]
[351834056,1738807840330,-500.0,0.0002018,4]
[351834058,1738807840339,-500.0,0.0002018,4]
[351834060,1738807840349,-500.0,0.0002018,4]
[351834062,1738807840358,-500.0,0.0002018,4]
[351834064,1738807840368,-500.0,0.0002018,4]
[351834066,1738807840377,-500.0,0.0002018,4]
[351834068,1738807840387,-500.0,0.0002018,4]
[351834070,1738807840396,-500.0,0.0002018,4]
[351834072,1738807840406,-500.0,0.0002018,4]
[351834074,1738807840416,-500.0,0.0002018,4]
[351834076,1738807840426,-632.02110721,0.0002018,4]
[351834078,1738807840435,-500.0,0.0002018,4]
[351834081,1738807840445,-500.0,0.0002018,4]
[351834084,1738807840454,-533.36643821,0.0002018,4]
[351834087,1738807840464,-500.0,0.0002018,4]
[351834089,1738807840473,-239.65741907,0.0002018,2]
[351834092,1738807840482,-94249.12807998,0.0002018,2]
[351834095,1738807840492,-95317.38198358,0.00020181,2]
[351834097,1738807840503,-879.86948005,0.00020181,30]
[351834099,1738807840512,-1073.91949204,0.00020181,120]
[351834101,1738807840521,-445.3780215,0.00020181,2]
[351834103,1738807840531,-1056.80750469,0.00020181,2]
[351834105,1738807840543,-21068.63476221,0.00020181,2]
[351834107,1738807840553,-2500.0,0.00020181,2]
[351834109,1738807840563,-140739.87423036,0.00020181,3]
[351834111,1738807840574,-573.75217599,0.00020181,2]
[351834113,1738807840583,-338.9306735,0.00020181,2]
[351834115,1738807840594,-1099.97158474,0.00020181,2]
[351834117,1738807840605,-533.75030296,0.00020181,2]
[351834119,1738807840614,-274.28262241,0.00020181,2]
[351834121,1738807840624,-903.54586966,0.00020181,2]
[351834124,1738807840637,-4774.53968255,0.00020181,60]
[351834126,1738807840646,-476.97998075,0.00020181,2]
[351834128,1738807840655,-15441.49337318,0.00020181,2]
[351834130,1738807840665,-221.33642809,0.00020181,120]
[351834132,1738807840674,-168.60861827,0.00020181,2]
[351834134,1738807840683,-227.39157957,0.00020181,2]
[351834136,1738807840693,-182435.88793614,0.00020181,7]
[351834138,1738807840702,-1570.89710137,0.00020181,2]
[351834140,1738807840711,-55067.61117976,0.00020181,2]
[351834141,1738807840721,-14312.05293409,0.00020181,2]
[351834144,1738807840730,-49510.20456732,0.00020181,2]
[351834146,1738807840739,-3070.4321185,0.00020181,10]
[351834147,1738807840749,-4783.39544043,0.00020181,10]
[351834150,1738807840759,-542.33605831,0.00020181,2]
[351834151,1738807840769,-4958.84836183,0.00020181,2]
[351834154,1738807840779,-5146.80093561,0.00020181,2]
[351834156,1738807840792,-1001.53932504,0.00020181,2]
[351834157,1738807840802,-270.58246499,0.00020181,10]
[351834159,1738807840811,-361.11257537,0.00020181,2]
[351834161,1738807840820,-13145.87195188,0.00020181,5]
[351834163,1738807840830,-2183.21498875,0.00020181,2]
[351834165,1738807840840,-57795.4907643,0.00020181,30]
[351834168,1738807840849,-280.82747214,0.00020181,2]
[351834169,1738807840860,-713.54712566,0.00020181,120]
[351834171,1738807840869,-618.94297619,0.00020181,30]
[351834173,1738807840879,-742.17169769,0.00020181,2]
[351834176,1738807840888,-305583.64825169,0.00020181,30]
[351834178,1738807840898,-56570.54070197,0.00020181,30]
[351834180,1738807840908,-14621.41131346,0.00020181,2]
[351834181,1738807840917,-63235.70782597,0.00020181,30]
[351834183,1738807840927,-24818.26162025,0.00020181,14]
[351834185,1738807840935,-22144.66354307,0.00020181,45]
[351834187,1738807840944,-5757.58404745,0.00020181,10]
[351834189,1738807840953,-3479068.33989456,0.00020181,60]
[351834191,1738807840963,-1818.10411561,0.00020181,2]
[351834193,1738807840972,-6687.85906746,0.00020181,4]
[351834195,1738807840984,-1488641.62414929,0.00020181,30]
[351834199,1738807841013,-1844.86592597,0.00020181,30]
[351834202,1738807841025,-321.2614063,0.00020181,30]
[351834204,1738807841035,-4821.6798791,0.00020181,30]
[351834206,1738807841046,-308.94361421,0.00020181,30]
[351834408,1738807843036,-615.40926904,0.00020181,30]
[351834410,1738807843048,-2435.4022744,0.00020181,30]
[351834422,1738807843162,-1090.20247588,0.00020181,30]
[351834437,1738807843292,-22113.77774051,0.00020181,30]
[351834572,1738807846102,-186723.78432683,0.00020181,30]
[351834574,1738807846116,-1809.45183458,0.00020181,30]
[351834575,1738807846240,-33112.72217961,0.00020181,30]
[351834576,1738807846252,-2234.41498821,0.00020181,30]
[351834577,1738807846326,-284072.23965387,0.00020181,30]
[351834578,1738807846336,-118461.58413817,0.00020181,30]
[351834579,1738807846347,-412.78038418,0.00020181,60]
[351834580,1738807846357,-1176.22849859,0.00020181,120]
[351834581,1738807846366,-214.28594684,0.00020181,7]
[351834582,1738807846376,-5129.18173122,0.00020181,4]
[351834583,1738807846385,-20269.86174445,0.00020181,5]
[351834584,1738807846395,-213.87925101,0.00020181,120]
[351834585,1738807846405,-438.72737866,0.00020181,120]
[351834586,1738807846415,-1731.07207673,0.00020181,7]
[351834587,1738807846424,-989.24311196,0.00020181,2]
[351834588,1738807846434,-13921.24247654,0.00020181,2]
[351834589,1738807846445,-218.0715596,0.00020181,2]
[351834590,1738807846454,-10092.01563392,0.00020181,2]
[351834591,1738807846464,-5969.82584962,0.00020181,7]
[351834592,1738807846474,-279.0,0.00020181,2]
[351834593,1738807846486,-1683.62926032,0.00020181,120]
[351834594,1738807846496,-3042.12749621,0.00020181,30]
[351834595,1738807846505,-4999.999999,0.00020181,5]
[351834596,1738807846515,-164.80711989,0.00020181,120]
[351834597,1738807846524,-1688.27739858,0.00020181,2]
[351834598,1738807846533,-200.65530395,0.00020181,2]
[351834600,1738807846543,-190.11906168,0.00020181,120]
[351834602,1738807846553,-359.55459406,0.00020181,5]
[351834604,1738807846563,-279.74022588,0.00020181,2]
[351834605,1738807846571,-1002.50211725,0.00020181,2]
[351834606,1738807846580,-1095.27379166,0.00020181,2]
[351834607,1738807846589,-162.91,0.00020181,2]
[351834608,1738807846601,-2434.03076253,0.00020181,10]
[351834609,1738807846610,-150.0,0.00020187,2]
[351834610,1738807846620,-200.0,0.00020192,2]
[351834611,1738807846631,-170.14,0.00020199,2]
[351834612,1738807846642,-907.62,0.000202,2]
[351834613,1738807846652,-1338.0,0.00020217,2]
[351834614,1738807846662,-3000.0,0.000203,2]
[351834615,1738807846672,-506.63057726,0.00020317,2]
[351834616,1738807846682,-200.2,0.0002038,2]
[351834617,1738807846692,-1338.0,0.00020415,2]
[351834618,1738807846702,-177.73,0.00020548,2]
[351834619,1738807846712,-150.0,0.00020692,2]
[351834620,1738807846721,-1000.0,0.0002075,2]
[351834621,1738807846731,-750.0,0.00021,2]
[351834622,1738807846740,-374.4,0.00021,2]
[351834623,1738807846750,-424.72,0.00021055,2]
[351834624,1738807846760,-370.35,0.00021106,2]
[351834625,1738807846770,-300.0,0.00021154,2]
[351834626,1738807846781,-379.66,0.00021174,2]
[351834627,1738807846791,-150.0,0.00021197,2]
[351834628,1738807846801,-876.49,0.00021244,30]
[351834629,1738807846811,-150.0,0.00021702,2]
[351834630,1738807846820,-182.87,0.00021881,2]
[351834631,1738807846830,-200.0,0.000219,2]
[351834632,1738807846839,-500.0,0.00021917,4]
[351834633,1738807846850,-500.0,0.00021917,4]
[351834634,1738807846860,-500.0,0.00021917,4]
[351834635,1738807846869,-500.0,0.00021917,4]
[351834636,1738807846878,-500.0,0.00021917,4]
[351834637,1738807846887,-500.0,0.00021917,4]
[351834638,1738807846897,-500.0,0.00021917,4]
[351834639,1738807846907,-500.0,0.00021917,4]
[351834640,1738807846920,-500.0,0.00021917,4]
[351834641,1738807846929,-500.0,0.00021917,4]
[351834642,1738807846939,-500.0,0.00021917,4]
[351834643,1738807846949,-500.0,0.00021917,4]
[351834644,1738807846960,-500.0,0.00021917,4]
[351834645,1738807846970,-500.0,0.00021917,4]
[351834646,1738807846981,-500.0,0.00021917,4]
[351834647,1738807846990,-500.0,0.00021917,4]
[351834648,1738807847001,-500.0,0.00021917,4]
[351834649,1738807847010,-250.0,0.00022,120]
[351834650,1738807847020,-152.0,0.00022,2]
[351834651,1738807847030,-150.0,0.00022206,2]
[351834652,1738807847040,-1323.95,0.00022372,4]
[351834653,1738807847050,-3729.81302,0.0002247,2]
[351834654,1738807847060,-441.44,0.00022571,2]
[351834655,1738807847071,-853.0,0.00022582,2]
[351834656,1738807847081,-150.0,0.00022711,2]
[351834657,1738807847091,-188.67,0.00022723,2]
[351834658,1738807847101,-907.62,0.00023,7]
[351834659,1738807847111,-250.0,0.00023,120]
[351834660,1738807847124,-800.0,0.00023,2]
[351834661,1738807847134,-3000.0,0.00023,2]
[351834662,1738807847144,-1000.0,0.00023056,2]
[351834663,1738807847154,-4023.0,0.00023062,2]
[351834664,1738807847165,-150.0,0.00023216,2]
[351834665,1738807847175,-300.0,0.000233,2]
[351834666,1738807847185,-424.72,0.00023319,2]
[351834667,1738807847197,-152.45,0.000234,31]
[351834668,1738807847207,-152.45,0.000234,31]
[351834669,1738807847217,-152.45,0.000234,31]
[351834670,1738807847226,-152.45,0.000234,31]
[351834671,1738807847236,-457.82,0.0002349,2]
[351834672,1738807847246,-170.14,0.00023533,2]
[351834673,1738807847256,-150.0,0.0002372,2]
[351834674,1738807847266,-500.0,0.00023777,2]
[351834675,1738807847276,-876.49,0.00023828,30]
[351834676,1738807847286,-669.35,0.00023836,2]
[351834677,1738807847296,-250.0,0.00024,120]
[351834678,1738807847306,-150.0,0.00024225,2]
[351834679,1738807847315,-1323.95,0.00024563,6]
[351834680,1738807847324,-157.0,0.0002463,30]
[351834681,1738807847333,-378.0,0.0002463,120]
[351834682,1738807847342,-157.0,0.0002464,30]
[351834683,1738807847351,-378.0,0.0002464,120]
[351834684,1738807847361,-157.0,0.0002465,30]
[351834685,1738807847370,-378.0,0.0002465,120]
[351834686,1738807847379,-1000.0,0.00024658,2]
[351834687,1738807847388,-400.0,0.000247,2]
[351834688,1738807847398,-500.0,0.000247,2]
[351834689,1738807847407,-508.0,0.000247,2]
[351834690,1738807847415,-1200.0,0.000247,2]
[351834691,1738807847424,-150.0,0.0002473,2]
[351834692,1738807847433,-157.0,0.0002485,30]
[351834693,1738807847442,-157.0,0.0002486,30]
[351834694,1738807847451,-157.0,0.0002487,30]
[351834695,1738807847460,-378.0,0.0002487,120]
[351834696,1738807847469,-378.0,0.0002488,120]
[351834697,1738807847478,-378.0,0.0002489,120]
[351834698,1738807847488,-400.0,0.000249,9]
[351834699,1738807847498,-3729.81303,0.0002497,2]
[351834700,1738807847507,-156.01637741,0.00025,2]
[351834701,1738807847517,-250.0,0.00025,120]
[351834702,1738807847526,-150.0,0.00025,2]
[351834703,1738807847536,-850.0,0.00025,2]
[351834704,1738807847546,-104387.92813495,0.00025,120]
[351834709,1738808196695,-4895612.07185711,0.00025,120]
[351834710,1738808196724,-182.87,0.00025007,120]
[351834711,1738808196754,-500.0,0.00025257,120]
[351834712,1738808196782,-250.0,0.00026,120]
[351834713,1738808196810,-250.0,0.00027,120]
[351834715,1738808732359,407.45593674,0.0002,120]
[351834716,1738808850779,150.0,0.00019882,120]
[351834726,1738809032143,-266.5105,8.699e-05,2]
[351834727,1738809032154,-842.48738812,8.699e-05,2]
[351834728,1738809032166,-236.79811188,8.699e-05,2]
[351834730,1738809032175,-1135.53263574,8.836e-05,2]
[351834735,1738809032254,-541.345,8.836e-05,2]
[351834736,1738809032265,-8454.92847332,8.836e-05,2]
[351834737,1738809032379,-1213.3527317,8.836e-05,2]
[351834738,1738809032394,-78.10175924,8.836e-05,2]
[351834739,1738809032403,-519.3438,8.973e-05,2]
[351834740,1738809032413,-193.55655264,9.93e-05,2]
[351834741,1738809032507,-28.25523011,9.93e-05,2]
[351834742,1738809032519,-767.31476989,9.932e-05,2]
[351834743,1738809032534,-5900.0,9.932e-05,2]
[351835262,1738809038067,-2454.77067185,9.932e-05,2]
[351835264,1738809038077,-968.30939815,9.933e-05,2]
[351835266,1738809038089,-3303.5872433,9.933e-05,2]
[351835268,1738809038099,-903.90629301,9.935e-05,2]
[351835270,1738809038109,-3050.63572877,9.937e-05,2]
[351835272,1738809038119,-221.81178275,9.938e-05,2]
[351835274,1738809038129,-9185.39049864,9.938e-05,2]
[351835276,1738809038138,-4271.89664145,9.939e-05,2]
[351835278,1738809038148,-2406.79663928,9.941e-05,2]
[351835280,1738809038158,-2406.79663928,9.943e-05,2]
[351835282,1738809038167,-9185.39049864,9.943e-05,2]
[351835284,1738809038177,-4457.86635556,9.945e-05,2]
[351835286,1738809038186,-4271.89664145,9.948e-05,2]
[351835288,1738809038195,-4699.02069509,9.949e-05,2]
[351835290,1738809038207,-630.69068571,9.949e-05,2]
[351835293,1738809038219,-3225.3956264,9.949e-05,2]
[351835294,1738809038228,-861.74334472,9.949e-05,2]
[351835297,1738809038239,-1695.96,9.949e-05,2]
[351835299,1738809038250,-6422.69392561,9.949e-05,2]
[351835301,1738809038261,-141.68817141,9.949e-05,2]
[351835303,1738809038271,-221.81178275,9.951e-05,2]
[351835305,1738809038280,-1496.5435671,9.952e-05,2]
[351835307,1738809038291,-2775.35307435,9.952e-05,2]
[351835309,1738809038301,-4283.83999902,9.954e-05,2]
[351835311,1738809038312,-497.55828648,9.954e-05,2]
[351835314,1738809038323,-2860.08216196,9.954e-05,2]
[351835316,1738809038333,-913.62655974,9.954e-05,2]
[351835318,1738809038344,-900.41305177,9.956e-05,2]
[351835320,1738809038355,-2150.222677,9.956e-05,2]
[351835322,1738809038364,-9122.08544174,9.96e-05,2]
[351835323,1738809038373,-122433.79362937,9.962e-05,2]
[351835324,1738809038383,-903.90629301,9.964e-05,2]
[351835325,1738809038392,-11912.87590976,9.965e-05,2]
[351835326,1738809038404,-9185.39049864,9.965e-05,2]
[351835327,1738809038413,-9122.08544174,9.965e-05,2]
[351835328,1738809038422,-4457.86635556,9.968e-05,2]
[351835329,1738809038431,-903.90629301,9.969e-05,2]
[351835330,1738809038441,-8555.1070072,9.969e-05,2]
[351835331,1738809038450,-11912.87590976,9.97e-05,2]
[351835332,1738809038459,-122433.79362937,9.974e-05,2]
[351835333,1738809038468,-4457.86635556,9.978e-05,2]
[351835334,1738809038477,-11912.87590976,9.978e-05,2]
[351835335,1738809038486,-2406.79663928,9.979e-05,2]
[351835336,1738809038494,-9185.39049864,9.98e-05,2]
[351835338,1738809038505,-8555.1070072,9.983e-05,2]
[351835340,1738809038518,-4457.86635556,9.985e-05,2]
[351835342,1738809038527,-11912.87590976,9.987e-05,2]
[351835344,1738809038536,-3050.63572877,9.991e-05,2]
[351835346,1738809038545,-200.0,9.992e-05,2]
[351835348,1738809038555,-122433.79362937,9.993e-05,2]
[351835350,1738809038564,-2406.79663928,9.994e-05,2]
[351835352,1738809038574,-903.90629301,9.994e-05,2]
[351835354,1738809038583,-122433.79362937,9.995e-05,2]
[351835356,1738809038593,-3050.63572877,9.997e-05,2]
[351835359,1738809038603,-221.81178275,9.998e-05,2]
[351835362,1738809038612,-368.18,0.00010137,2]
[351835366,1738809038622,-389.14,0.00010137,2]
[351835369,1738809038632,-381.92,0.00011643,2]
[351835371,1738809038641,-550.0,0.00013,2]
[351835373,1738809038654,-369.84,0.00013764,2]
[351835375,1738809038664,-600.0,0.00015,2]
[351835377,1738809038673,-389.14,0.00016813,2]
[351835379,1738809038683,-650.0,0.00017,2]
[351835381,1738809038693,-379.46,0.00017321,2]
[351835383,1738809038702,-163.01,0.00018618,2]
[351835385,1738809038711,-700.0,0.00019,2]
[351835387,1738809038720,-182.87,0.00019098,2]
[351835389,1738809038729,-150.0,0.00019178,2]
[351835391,1738809038739,-4825.29,0.00019266,2]
[351835393,1738809038749,-700.0,0.000193,7]
[351835395,1738809038758,-1400.0,0.000194,7]
[351835397,1738809038768,-2100.0,0.000195,7]
[351835399,1738809038777,-2800.0,0.000196,7]
[351835401,1738809038786,-150.0,0.00019683,2]
[351835403,1738809038795,-6923.0,0.000197,2]
[351835405,1738809038804,-3500.0,0.000197,7]
[351835407,1738809038813,-700.0,0.000198,7]
[351835409,1738809038822,-700.0,0.000199,7]
[351835411,1738809038831,-152.54,0.0002,31]
[351835413,1738809038841,-152.54,0.0002,31]
[351835415,1738809038850,-152.54,0.0002,31]
[351835417,1738809038859,-10368.12765387,0.0002,5]
[351835419,1738809038868,-150.0,0.00020163,120]
[351835421,1738809038877,-150.0,0.00020187,2]
[351835423,1738809038887,-1009.95323441,0.00020198,2]
[351835425,1738809038896,-156.0163774,0.00020199,2]
[351835427,1738809038906,-55102.24729813,0.00020199,2]
[351835429,1738809038916,-1160.50396364,0.00020199,90]
[351835431,1738809038925,-555.01872721,0.00020199,5]
[351835433,1738809038934,-199661.03889729,0.00020199,2]
[351835435,1738809038944,-1471.9428576,0.00020199,10]
[351835437,1738809038953,-1043.63326031,0.00020199,120]
[351835439,1738809038962,-624.46451205,0.00020199,30]
[351835441,1738809038972,-120757.47889637,0.00020199,2]
[351835443,1738809038982,-171.20987586,0.00020199,91]
[351835445,1738809038992,-739.14176581,0.00020199,16]
[351835447,1738809039002,-5112241.65235906,0.00020199,30]
[351835449,1738809039014,-3600.0,0.00020199,30]
[351835451,1738809039025,-6262.24516449,0.00020199,30]
[351835453,1738809039036,-378.00513087,0.00020199,30]
[351835455,1738809039047,-1363.83747749,0.00020199,30]
[351835458,1738809039059,-717.33266096,0.00020199,30]
[351835576,1738809040171,-17223.46365979,0.00020199,30]
[351835578,1738809040183,-413.15347707,0.00020199,30]
[351835580,1738809040195,-4000.39879996,0.00020199,30]
[351835583,1738809040218,-24330.50471821,0.00020199,30]
[351835586,1738809040229,-2276.90767204,0.00020199,30]
[351835606,1738809040416,-253305.89239364,0.00020199,30]
[351835609,1738809040429,-102389.7025773,0.00020199,30]
[351835611,1738809040440,-28049.34219364,0.00020199,30]
[351835613,1738809040451,-117523.6734315,0.00020199,30]
[351835615,1738809040462,-329.36196169,0.00020199,30]
[351835617,1738809040473,-608.38516057,0.00020199,30]
[351835619,1738809040485,-2592.4346909,0.00020199,30]
[351835628,1738809040563,-340.44449634,0.00020199,30]
[351835843,1738809043534,-915.02166,0.00020199,30]
[351836104,1738809046315,-2655.27,0.0002,2]
[351836106,1738809046324,-15716.30697551,0.00020199,30]
[351836108,1738809046337,-3628.65695042,0.00020199,30]
[351836126,1738809046498,-1193.65154266,0.00020199,30]
[351837156,1738810232338,-3336.76602723,9.931e-05,2]
[351837158,1738810232350,-1457.05754484,9.931e-05,2]
[351837159,1738810232360,-1222.79499255,9.932e-05,2]
[351837160,1738810232372,-91.80654863,9.932e-05,2]
[351837161,1738810232381,-200.0,9.934e-05,2]
[351837162,1738810232394,-1088.99345523,9.938e-05,2]
[351837163,1738810232420,-754.11,9.938e-05,2]
[351837164,1738810232432,-605.2000001,9.938e-05,2]
[351837165,1738810232504,-1537.86100069,9.938e-05,2]
[351837166,1738810232656,-1478.34689998,9.938e-05,2]
[351837308,1738810238289,-1941.1933552,9.938e-05,2]
[351837309,1738810238301,-4521.66761253,9.938e-05,2]
[351837310,1738810238310,-1314.60154118,9.941e-05,2]
[351837311,1738810238319,-1048.75907718,9.944e-05,2]
[351837312,1738810238328,-212.7975,9.944e-05,2]
[351837313,1738810238337,-11927.37232373,9.946e-05,2]
[351837314,1738810238346,-2396.91178603,9.954e-05,2]
[351837315,1738810238355,-200.0,9.96e-05,2]
[351837316,1738810238363,-212.7975,9.961e-05,2]
[351837317,1738810238372,-200.0,9.962e-05,2]
[351837318,1738810238383,-212.7975,9.963e-05,2]
[351837319,1738810238393,-200.0,9.964e-05,2]
[351837320,1738810238401,-4004.06603222,9.966e-05,2]
[351837321,1738810238412,-1454.3225435,9.966e-05,2]
[351837322,1738810238423,-916.34,9.966e-05,2]
[351837323,1738810238434,-4062.17554136,9.966e-05,2]
[351837324,1738810238443,-1048.75907718,9.97e-05,2]
[351837325,1738810238452,-1048.75907718,9.971e-05,2]
[351837326,1738810238461,-2396.91178603,9.972e-05,2]
[351837327,1738810238470,-11927.37232373,9.972e-05,2]
[351837328,1738810238478,-7694.98908139,9.977e-05,2]
[351837329,1738810238490,-2741.91503569,9.977e-05,2]
[351837330,1738810238499,-1048.75907718,9.977e-05,2]
[351837331,1738810238508,-212.7975,9.978e-05,2]
[351837332,1738810238517,-4793.82357207,9.979e-05,2]
[351837333,1738810238525,-11422.70481506,9.981e-05,2]
[351837334,1738810238537,-504.66750867,9.981e-05,2]
[351837335,1738810238545,-266.39279967,9.982e-05,2]
[351837336,1738810238556,-1522.85,9.982e-05,2]
[351837337,1738810238567,-305.05113368,9.982e-05,2]
[351837338,1738810238578,-302.61785268,9.982e-05,2]
[351837339,1738810238587,-18.50714762,9.984e-05,2]
[351837340,1738810238598,-1296.09439356,9.984e-05,2]
[351837341,1738810238606,-2396.91178603,9.986e-05,2]
[351837342,1738810238615,-1982.12962041,9.988e-05,2]
[351837343,1738810238630,-8454.77449667,9.988e-05,2]
[351837345,1738810238639,-10436.90411708,9.991e-05,2]
[351837347,1738810238648,-4793.82357207,9.992e-05,2]
[351837349,1738810238657,-1314.60154118,9.994e-05,2]
[351837351,1738810238666,-4793.82357207,9.995e-05,2]
[351837353,1738810238675,-550.0,0.00013,2]
[351837355,1738810238684,-150.0,0.00013834,2]
[351837357,1738810238693,-150.0,0.000143,2]
[351837359,1738810238702,-1000.0,0.00014667,2]
[351837361,1738810238711,-150.0,0.00014953,2]
[351837363,1738810238720,-600.0,0.00015,2]
[351837366,1738810238729,-1000.0,0.00015387,2]
[351837370,1738810238737,-150.0,0.00016712,2]
[351837374,1738810238747,-1000.0,0.00016736,2]
[351837378,1738810238755,-1000.0,0.00016736,2]
[351837382,1738810238764,-437.71,0.00016737,2]
[351837386,1738810238773,-371.4,0.00016737,2]
[351837390,1738810238782,-375.91,0.00016737,2]
[351837393,1738810238790,-376.49,0.00016737,2]
[351837396,1738810238799,-370.7,0.00016737,2]
[351837399,1738810238808,-378.69,0.00016737,2]
[351837401,1738810238817,-378.19,0.00016737,2]
[351837403,1738810238825,-370.09,0.00016737,2]
[351837405,1738810238834,-371.98,0.00016737,2]
[351837407,1738810238843,-378.0,0.00016737,2]
[351837409,1738810238854,-378.95,0.00016737,2]
[351837411,1738810238863,-370.33,0.00016737,2]
[351837413,1738810238871,-377.38,0.00016737,2]
[351837415,1738810238882,-382.04,0.00016737,2]
[351837417,1738810238891,-650.0,0.00017,2]
[351837419,1738810238900,-250.0,0.00017177,2]
[351837421,1738810238909,-809.05,0.00017941,2]
[351837423,1738810238919,-250.0,0.00017962,2]
[351837425,1738810238933,-15967.11,0.00017971,2]
[351837427,1738810238942,-354.28,0.00018005,2]
[351837429,1738810238951,-200.0,0.00018009,2]
[351837431,1738810238960,-162.12,0.0001804,2]
[351837433,1738810238970,-172.74,0.00018153,2]
[351837435,1738810238979,-1000.0,0.00018165,2]
[351837437,1738810238988,-200.0,0.00018174,2]
[351837438,1738810238998,-5974.67,0.00018296,2]
[351837440,1738810239010,-1574.23,0.00018328,2]
[351837443,1738810239019,-745.01,0.00018488,30]
[351837445,1738810239028,-158.18,0.00018655,2]
[351837446,1738810239038,-158.18,0.0001866,2]
[351837448,1738810239047,-158.18,0.00018665,2]
[351837451,1738810239056,-158.18,0.0001867,2]
[351837453,1738810239065,-158.18,0.00018675,2]
[351837454,1738810239074,-158.18,0.0001868,2]
[351837456,1738810239083,-158.18,0.00018684,2]
[351837458,1738810239092,-158.18,0.00018689,2]
[351837460,1738810239102,-158.18,0.00018694,2]
[351837462,1738810239111,-158.18,0.00018699,2]
[351837464,1738810239120,-158.18,0.00018704,2]
[351837466,1738810239130,-158.18,0.00018709,2]
[351837468,1738810239140,-158.18,0.00018714,2]
[351837470,1738810239149,-158.18,0.00018719,2]
[351837472,1738810239158,-375.47,0.00018722,2]
[351837474,1738810239167,-375.81,0.00018722,2]
[351837476,1738810239177,-158.18,0.00018724,2]
[351837478,1738810239186,-158.18,0.00018729,2]
[351837480,1738810239195,-1124.263,0.00018729,2]
[351837482,1738810239204,-158.18,0.00018734,2]
[351837484,1738810239214,-158.18,0.00018738,2]
[351837486,1738810239223,-158.18,0.00018743,2]
[351837488,1738810239232,-158.18,0.00018748,2]
[351837490,1738810239241,-374.14,0.00018955,2]
[351837492,1738810239250,-377.2,0.0001898,2]
[351837494,1738810239259,-700.0,0.00019,2]
[351837496,1738810239268,-437.71,0.00019001,2]
[351837498,1738810239277,-1000.0,0.00019017,2]
[351837500,1738810239286,-382.45,0.00019019,2]
[351837502,1738810239295,-377.52,0.0001905,2]
[351837504,1738810239304,-372.31,0.0001905,2]
[351837506,1738810239313,-374.53,0.0001905,2]
[351837508,1738810239322,-381.57,0.0001905,2]
[351837510,1738810239331,-374.06,0.0001905,2]
[351837512,1738810239341,-377.78,0.0001905,2]
[351837514,1738810239351,-380.17,0.0001905,2]
[351837516,1738810239360,-381.69,0.0001905,2]